Cogmind - Beta 15 @@@ ROGUE MODE // 2025.07.10 @ 15:54:02 Player: celerysam Result: Destroyed by G-34 Mercenary with Small Laser Performance ------------- Evolutions (0) 0 Regions Visited (1) 200 Robots Destroyed (5) 25 Value Destroyed (183) 183 Prototype IDs (0) 0 Alien Tech Used (0) 0 Bonus (0) 0 TOTAL SCORE: 408 Bonus ------- None Cogmind --------- Core Integrity 0/250 Matter 247/300 Energy 100/100 System Corruption 0% Temperature Cool (6) Movement Core (200) Ox3 Location -10/Materials Parts ------- > --- POWER (1) -------- (None) > --- PROPULSION (2) --- (None) > --- UTILITY (2) ------ Cooling System Small Storage Unit > --- WEAPON (2) ------- Maul > --- INVENTORY (8) ---- Light Treads Aluminum Leg Wheel Compact Wheel Seismic Detector Mini Grenade Launcher Datajack Mining Laser Peak State ------------ > --- POWER ------------ Ion Engine > --- PROPULSION ------- Aluminum Leg Aluminum Leg > --- UTILITY ---------- Improved Heat Sink Small Storage Unit > --- WEAPON ----------- Assault Rifle Light Assault Rifle > --- INVENTORY -------- Light Ion Engine Light Treads Light Treads Wheel Compact Wheel Particle Gun Mini Grenade Launcher Maul [Rating: 10] Favorites ----------- Power Ion Engine Engine Ion Engine Propulsion Aluminum Leg Leg Aluminum Leg Wheel Wheel Utility Small Storage Unit Device Cooling System Storage Small Storage Unit Weapon Assault Rifle Energy Gun EM Pulse Gun Ballistic Gun Assault Rifle Impact Weapon Maul Build | -11 -10 ------- Run | Yrd Mat Slots Evolved . | . . Power . | . . Propulsion . | . . Utility . | . . Weapon . | . . Parts Attached 16 | 8 8 Power 2 | 1 1 Engine 2 | 1 1 Core . | . . Reactor . | . . Propulsion 6 | 4 2 Treads . | . . Leg 2 | 2 . Wheel 4 | 2 2 Hover . | . . Flight . | . . Utility 3 | 1 2 Device 2 | . 2 Storage 1 | 1 . Processor . | . . Hackware . | . . Protection . | . . Artifact . | . . Weapon 5 | 2 3 Energy Gun 2 | 1 1 Energy Cannon . | . . Ballistic Gun 2 | 1 1 Ballistic Cannon . | . . Launcher . | . . Special Weapon . | . . Impact Weapon 1 | . 1 Slashing Weapon . | . . Piercing Weapon . | . . Special Melee Weapon . | . . Unidentified Prototypes . | . . Parts Lost 9 | . 9 Power 2 | . 2 Propulsion 3 | . 3 Utility . | . . Weapon 4 | . 4 Highest Loss Streak 4 | . 4 To Critical Strikes . | . . Average Backups 6 | 4 7 Power . | 1 . Propulsion 3 | 2 4 Utility . | . . Weapon 1 | 1 1 Tool/Special . | . . Unused Backups 6 | . 6 Power 1 | . 1 Propulsion 2 | . 2 Utility 1 | . 1 Weapon 1 | . 1 Tool/Special 1 | . 1 Average Slot Usage (%) 85 | . 85 Engine 10 | . 10 Leg 22 | . 22 Wheel 2 | . 2 Device 8 | . 8 Storage 14 | . 14 Energy Gun 6 | . 6 Ballistic Gun 14 | . 14 Impact Weapon 4 | . 4 Peak Build Rating 10 | 6 10 Average Rating 7 | 3 7 On Entrance 3 | . 6 Naked Turns . | . . Heaviest Build 17 | 14 17 Greatest Support 26 | 26 20 Greatest Overweight (x) 3 | . 3 Average Overweight (x) . | . . Largest Inventory Capacity 8 | 8 8 Average Capacity 7 | 7 8 Most Carried 8 | 8 8 Average Carried 6 | 5 7 Final Capacity 8 | 8 8 Final Carried 8 | 6 8 Class Distribution -------------------- 100% | Mutant Dominant Class ---------------- Mutant | -10/Materials Resources | -11 -10 ----------- Run | Yrd Mat Matter Collected 326 | 202 124 Remotely . | . . Salvage Created 171 | . 171 Parts 5 | . 5 Haulers Intercepted . | . . Recyclers Shooed 2 | . 2 Parts Field Recycled . | . . Retrieved Matter . | . . Parts Self-Destructed . | . . Prevented . | . . Kills | -11 -10 ------- Run | Yrd Mat Combat Hostiles Destroyed 5 | . 5 Melee 1 | . 1 Guns 3 | . 3 Classes Destroyed 1 | . 1 Grunt 5 | . 5 Best Kill Streak 2 | . 2 Combat Bots Only 2 | . 2 Max Kills in Single Turn 1 | . 1 Gunslinging . | . . Exploded . | . . Melee 1 | . 1 Uniques/NPCs Destroyed . | . . Combat | -11 -10 -------- Run | Yrd Mat Hostile Shots Fired 101 | . 101 Missed 25 | . 25 Hits 76 | . 76 Projectile 76 | . 76 Critical Strikes 2 | . 2 Damage Taken 976 | . 976 Core 261 | . 261 Absorbed by Shields . | . . Core Remaining (%) 100 | 100 . Volleys Fired 24 | . 24 Largest 2 | . 2 Hottest 85 | . 85 Shots Fired 37 | . 37 Gun 37 | . 37 Cannon . | . . Launcher . | . . Special . | . . Kinetic 24 | . 24 Thermal 10 | . 10 Explosive . | . . Electromagnetic 3 | . 3 Robot Hit Streak 9 | . 9 Robot Miss Streak 2 | . 2 Penetration Max . | . . Secondary Targets . | . . Shots Hit Robots 38 | . 38 Core Hits 9 | . 9 Critical Kills . | . . Critical Parts Destroyed 3 | . 3 Critical Strikes 4 | . 4 Burn 1 | . 1 Smash 3 | . 3 Melee Attacks 14 | . 14 Impact 14 | . 14 Slashing . | . . Piercing . | . . Sneak Attacks . | . . Combat Hostiles . | . . Follow-up Attacks . | . . Damage Inflicted 721 | . 721 Guns 363 | . 363 Cannons . | . . Explosions . | . . Melee 358 | . 358 Ramming . | . . Kinetic 202 | . 202 Thermal 137 | . 137 Explosive . | . . Electromagnetic 24 | . 24 Impact 358 | . 358 Slashing . | . . Piercing . | . . Highest Corruption . | . . Average Corruption . | . . Corruption Purged . | . . Corruption Blocked . | . . Overload Shots . | . . Overflow Damage 137 | . 137 Projectiles . | . . Explosions . | . . Melee 137 | . 137 Knockbacks 3 | . 3 Impact 2 | . 2 Kinetic . | . . Secondary 1 | . 1 Self-Inflicted Damage . | . . Shots . | . . Rammed . | . . Targets Rammed . | . . Kicked . | . . Crushed . | . . Highest Temperature 60 | . 60 Average Temperature 32 | . 32 Received Heat Transfer 576 | . 576 Siege Activations . | . . Martial Activations . | . . Shielding Activations . | . . Robots Disrupted . | . . Combat Hostiles . | . . Robots Corrupted 1 | . 1 Combat Hostiles 1 | . 1 Parts Fried 1 | . 1 Impact Corruptions 5 | . 5 Robots Melted . | . . Combat Hostiles . | . . Parts Melted 1 | . 1 Heat Transferred 407 | . 407 Parts Sabotaged . | . . Parts Stolen . | . . Parts Stripped . | . . Power Chain Reactions . | . . Alert | -11 -10 ------- Run | Yrd Mat Maximum Alert Level . | . . Low Security (%) 100 | 100 100 Level 1 . | . . Level 2 . | . . Level 3 . | . . Level 4 . | . . Level 5 . | . . High Security . | . . Max Security . | . . Peak Influence 45 | . 45 Initial . | . . Average 7 | . 8 Influence Increases 136 | . 136 Destroy 0b10 Robot/C 100 | . 100 Destroy Leader 20 | . 20 Destroy Structure 1 | . 1 Lose Combat Pursuer 15 | . 15 Influence Decreases 121 | . 121 Time Decay 71 | . 71 Lost Part 50 | . 50 Squads Dispatched 1 | . 1 Investigation . | . . Extermination . | . . Reinforcement 1 | . 1 Assault . | . . Garrison . | . . Intercept . | . . Searches Triggered . | . . Construction Impeded . | . . Haulers Reinforced . | . . Active Scanning Responses . | . . Cargo Convoy Interrupts . | . . Stealth | -11 -10 --------- Run | Yrd Mat Distress Signals 1 | . 1 Communications Jammed . | . . Distress Signals . | . . Times Spotted 10 | . 10 Peak Tracking Total 4 | . 4 Tactical Retreats 1 | . 1 Traps | -11 -10 ------- Run | Yrd Mat Traps Triggered . | . . Indirectly . | . . Trap Hack Attempts . | . . Triggered . | . . Disarmed . | . . Reprogrammed . | . . Reused . | . . Traps Extracted . | . . Installed . | . . Triggered . | . . Machines | -11 -10 ---------- Run | Yrd Mat Machines Disabled . | . . Max in Single Turn . | . . Machines Repaired . | . . Machines Dismantled . | . . Machines Sabotaged . | . . Overloaded Fab Kills . | . . Hacking | -11 -10 --------- Run | Yrd Mat Machines Accessed 1 | . 1 Terminals 1 | . 1 Fabricators . | . . Repair Stations . | . . Recycling Units . | . . Scanalyzers . | . . Garrison Access . | . . Total Hacks 1 | . 1 Successful 1 | . 1 Failed . | . . Catastrophic . | . . Database Lockouts . | . . Manual 1 | . 1 Terminals 1 | . 1 Fabricators . | . . Repair Stations . | . . Recycling Units . | . . Scanalyzers . | . . Garrison Access . | . . Terminal Hacks . | . . Fabricator Hacks . | . . Repair Station Hacks . | . . Recycling Unit Hacks . | . . Scanalyzer . | . . Garrison Access Hacks . | . . Unauthorized Hacks 1 | . 1 Terminals 1 | . 1 Botnet 1 | . 1 Fabricators . | . . Repair Stations . | . . Recycling Units . | . . Scanalyzers . | . . Garrison Access . | . . Data Cores Recovered . | . . Used . | . . Hacking Detections . | . . Full Trace Events . | . . Feedback Events . | . . Feedback Blocked . | . . Robot Schematics Acquired . | . . Robots Built . | . . Authchips . | . . Time . | . . Total Robot Build Rating . | . . Part Schematics Acquired . | . . Parts Built . | . . Authchips . | . . Time . | . . Total Part Build Rating . | . . Parts Repaired . | . . Time . | . . Parts Recycled . | . . Recycled Matter . | . . Retrieved Matter . | . . Retrieved Components . | . . Parts Scanalyzed . | . . Part Schematics Acquired . | . . Parts Damaged . | . . Bothacking | -11 -10 ------------ Run | Yrd Mat Used RIF Installer . | . . Robots Hacked . | . . Non-combat . | . . Combat . | . . Robot Hacks Applied . | . . Relay Couplers Released . | . . Fabnet Peak Effective % . | . . Robots Rewired . | . . Allies Hacked . | . . Hacks Repelled . | . . Allies | -11 -10 -------- Run | Yrd Mat Total Allies . | . . Largest Group . | . . Highest-Rated Group . | . . Highest-Rated Ally . | . . Total Orders . | . . Ally Attacks . | . . Total Damage . | . . Kills . | . . Allies Corrupted . | . . Allies Melted . | . . Intel | -11 -10 ------- Run | Yrd Mat Active Infowar (turns) . | . . Robot Analysis Total . | . . Derelict Logs Recovered . | . . Drone Launches . | . . Drone Recoveries . | . . Exploration | -11 -10 ------------- Run | Yrd Mat Turns Passed 369 | 57 312 Spaces Moved 194 | 41 153 Core 11 | 9 2 Treads . | . . Legs 160 | 17 143 Wheels 23 | 15 8 Hover . | . . Flight . | . . Fastest Speed 50 | 50 80 Average Speed 117 | 94 123 Slowest Speed 200 | 120 200 Overloaded Moves . | . . Propulsion Burnouts . | . . Robots Hopped . | . . Potential Cave-ins . | . . Cave-ins Triggered . | . . Exploration Rate (%) 14 | 3 26 Regions Visited 1 Branch Regions . Pre-discovered Areas . | . . Known Exits Taken . | . . Unknown Exits Taken 1 | 1 . Scrap Searched . | . . Spaces Dug . | . . Terrain Destroyed . | . . Melee . | . . Projectile . | . . AOE . | . . Terrain Rammed . | . . Walls Destroyed . | . . Machines Disabled . | . . Actions | -11 -10 --------- Run | Yrd Mat Total 271 | 57 214 Wait . | . . Move 193 | 40 153 Hop . | . . Pick Up 18 | 8 10 Fast Attach 5 | 4 1 Attach 8 | 3 5 Detach 1 | 1 . Swap 4 | 1 3 Drop 4 | . 4 Fire 24 | . 24 Melee 14 | . 14 Ram . | . . Kick . | . . Crush . | . . Escape Stasis . | . . Rewire . | . . Trap . | . . Miscellaneous . | . . Route ------- -11/Scrapyard -10/Materials (discovered 2 exits: [*Mat] / [*Min]) History --------- Turn | Location | Event 28 | -11/Scrapyard | Discovered new exit (range 14) 58 | -11/Scrapyard | Entered Materials 66 | -10/Materials | Discovered new exit (range 16) 237 | -10/Materials | Discovered new exit (range 3) 299 | -10/Materials | Core integrity fell below 50% 316 | -10/Materials | Build established: Mutant 331 | -10/Materials | Lost 4 parts (1p1n2w) 358 | -10/Materials | Core integrity fell below 20% 370 | -10/Materials | Destroyed by G-34 Mercenary with Small Laser Last Messages --------------- 00342_ G-34 Mercenary suffers critical hit (Smash). 00342_ Destroyed Aluminum Leg. 00342_ G-34 Mercenary system corrupted by crushing effect. 00343_ K-01 Serf collects debris. 00345_ Acquired 32 matter. 00346_ Lgt. Assault Rifle destroyed. 00347_ K-01 Serf collects debris. 00348_ Lgt. Ion Engine destroyed. 00349_ Destroyed Heat Sink. 00349_ G-34 Mercenary system corrupted by crushing effect. 00352_ G-34 Mercenary destroyed. 00352_ K-01 Serf collects debris. 00356_ Wheel destroyed. 00358_ K-01 Serf destroyed. 00361_ K-01 Serf collects debris. 00364_ Wheel destroyed. 00366_ K-01 Serf collects debris. Map ----- +----------------------------------------------------+ | ??????????????????????????????????? | | ??????????????????????????????????? | | ??????????????????????????????????? | | ??????????????????????????????????? | | ??????????????????????????????????? | | ??????????????????????????????????? | | ???????? ???????????????????????? | | ???????# ???????????????????????? | | ???????# ???????????????????????? | | ???????# ???????????????????????? | | ???????# ???????????????????????? | | ???????+ ???????????????????????? | | ???????# ???????????????????????? | | ???????# #??????????????????????? | | ???????# #??????????????????????? | | ???????# #???????????? ??????? | | ???????# a#???????????# ??????? | | ???????# #???????????# ??????? | | ???????# #???????????# ??????? | | ???????# ###########?# ??????? | | ???????# %# #?# #??????? | | ???????# [# #?# #??????? | | ???????# *# #?# #??????? | | ???????# =%# /|! #?# #??????? | | ???????# %=# / !% #?# #??????? | | ???????# k@/ |! #?# #??????? | | ???????# # #?# #??????? | | ???????# # #?# #??????? | | ???????#% g###########?# #??##### | | ???????# %# ###### #### !!# | | ???????#= g# """ ## !!# | | ???????# # Y" ## [ ]]# | | ???????# + """ + ]# | | ???????# # ###+##### * /# | | ???????# < # # ## //# | | ???????# ######## ## ##### | | ???????#####??????# ## #### | | ??????????????????# ## | | ??????????????????# ## | | ??????????????????# !!! ## | | ??????????????????# !!! ######### | | ??????????????????# !! #???????## | | ??????????????????# #????????? | | ??????????????????# "T" #????????? | | ??????????????????# """ #????????? | | ??????????????????# #????????? | | ??????????????????########????????? | | | | | | | +----------------------------------------------------+ Best States ------------- Heat Dissipation 47 Energy Generation 10 Energy Capacity 250 Matter Stores 250 Matter Capacity 300 Sight Range 16 Terrain Scan Density 10 Evasion (%) 55 Item Schematics ----------------- None Robot Schematics ------------------ None Fabricated ------------ Nothing Repaired ---------- Nothing Alien Tech Used ----------------- None Achievements -------------- None Challenges ------------ None Game ------ Seed ParticleImprovedStreamer Manual? 0 Play Time 00:05:55 Cumulative 270.4 hours Start 2025.07.10 @ 15:50:40 End 2025.07.10 @ 15:54:02 Sessions 1 Manual Loads 0 Difficulty Rogue Special Mode None Game No. 422 Rogue 422 Adventurer 0 Explorer 0 Win Type - Total 1 Types 1/0/0/0/0/0/0/0/0/0 Lore% 64 Gallery% 63 Achievement% 44 Wizard Run 0 Options --------- Layout 1 ASCII 0 Keyboard 0 Movement Mouse Keybinds 0 Fullscreen 2 Font 24/Smallcaps Map View 50x35 Zoom Use 0% Tactical HUD 1 Map Filters NONE Filters NONE Steam 1 RUN: 406022d5-2e9b-4152-9d8c-d89a9bab3ffb